[Event "*** SCC Grand Prix: Titled Tuesday Blitz"]
[Site "Chess.com"]
[Date "2020.06.02"]
[Round "6"]
[White "grunbergmihai"]
[Black "Firegrizzly"]
[Result "1-0"]
[WhiteElo "2395"]
[BlackElo "2568"]
[TimeControl "180+1"]
[EndTime "11:08:28 PDT"]
[Termination "grunbergmihai won by resignation"]

1. Nf3 {[%clk 0:03:00.9]} 1... Nf6 {[%clk 0:02:59.3]} 2. c4 {[%clk 0:03:00.7]}
2... e6 {[%clk 0:02:58.3]} 3. g3 {[%clk 0:03:00.5]} 3... a6 {[%clk 0:02:57.8]}
4. Bg2 {[%clk 0:03:00.1]} 4... b5 {[%clk 0:02:58.4]} 5. b3 {[%clk 0:02:59.7]}
5... Bb7 {[%clk 0:02:57.9]} 6. O-O {[%clk 0:02:59.4]} 6... c5 {[%clk 0:02:58.4]}
7. Bb2 {[%clk 0:02:58.9]} 7... Be7 {[%clk 0:02:55.7]} 8. Na3 {[%clk 0:02:58.7]}
8... Qb6 {[%clk 0:02:53.6]} 9. e3 {[%clk 0:02:57.1]} 9... O-O {[%clk 0:02:52.7]}
10. Qe2 {[%clk 0:02:56.5]} 10... d5 {[%clk 0:02:46.5]} 11. cxb5 {[%clk
0:02:39.2]} 11... Nbd7 {[%clk 0:02:45.5]} 12. Ne5 {[%clk 0:02:26.7]} 12... Nxe5
{[%clk 0:02:38.1]} 13. Bxe5 {[%clk 0:02:25.7]} 13... c4 {[%clk 0:02:37.7]} 14.
Bd4 {[%clk 0:02:13.5]} 14... Bc5 {[%clk 0:02:09.6]} 15. Bxc5 {[%clk 0:02:12.8]}
15... Qxc5 {[%clk 0:02:09.3]} 16. Nxc4 {[%clk 0:02:12.6]} 16... Qxb5 {[%clk
0:02:01.6]} 17. Qf3 {[%clk 0:01:56.3]} 17... dxc4 {[%clk 0:01:32]} 18. Qxb7
{[%clk 0:01:54.7]} 18... Qxb7 {[%clk 0:01:32.9]} 19. Bxb7 {[%clk 0:01:54.4]}
19... Ra7 {[%clk 0:01:33.7]} 20. Bf3 {[%clk 0:01:52.9]} 20... Rd8 {[%clk
0:01:29.8]} 21. bxc4 {[%clk 0:01:46]} 21... Rxd2 {[%clk 0:01:28.5]} 22. Rfd1
{[%clk 0:01:45.7]} 22... Rxd1+ {[%clk 0:01:23.6]} 23. Rxd1 {[%clk 0:01:45.4]}
23... g5 {[%clk 0:01:23.6]} 24. c5 {[%clk 0:01:42.6]} 24... Kf8 {[%clk
0:01:19.5]} 25. c6 {[%clk 0:01:31.9]} 25... Ke7 {[%clk 0:01:18.8]} 26. h3 {[%clk
0:01:30.4]} 26... Rc7 {[%clk 0:01:17.2]} 27. Rb1 {[%clk 0:01:27.2]} 27... e5
{[%clk 0:01:12.1]} 28. Rb6 {[%clk 0:01:24]} 28... e4 {[%clk 0:01:12.3]} 29. Be2
{[%clk 0:01:22.9]} 29... a5 {[%clk 0:01:12.5]} 30. Ra6 {[%clk 0:01:22.1]} 30...
h6 {[%clk 0:01:10.5]} 31. Bb5 {[%clk 0:01:19.9]} 31... Nd5 {[%clk 0:01:09.1]}
32. Rxa5 {[%clk 0:01:19.6]} 32... Nc3 {[%clk 0:01:09]} 33. a4 {[%clk 0:01:16.9]}
33... Kd6 {[%clk 0:01:09.2]} 34. Ra8 {[%clk 0:01:15.2]} 34... Kc5 {[%clk
0:01:07.4]} 35. Rb8 {[%clk 0:01:11.8]} 35... h5 {[%clk 0:00:59.4]} 36. Kf1
{[%clk 0:01:09.7]} 36... h4 {[%clk 0:00:57.9]} 37. gxh4 {[%clk 0:01:08.2]} 37...
gxh4 {[%clk 0:00:57.4]} 38. Ke1 {[%clk 0:01:04.6]} 38... f6 {[%clk 0:00:50.3]}
39. Kd2 {[%clk 0:01:03.3]} 39... Nd5 {[%clk 0:00:49.6]} 40. Rb7 {[%clk
0:01:00.9]} 40... Rc8 {[%clk 0:00:47.6]} 41. Rh7 {[%clk 0:00:54]} 41... Nb4
{[%clk 0:00:42.4]} 42. Rxh4 {[%clk 0:00:49.5]} 42... f5 {[%clk 0:00:41.8]} 43.
Rh5 {[%clk 0:00:47.8]} 43... Rf8 {[%clk 0:00:41.8]} 44. c7 {[%clk 0:00:46.4]}
44... Nd5 {[%clk 0:00:41.5]} 45. Rxf5 {[%clk 0:00:44]} 1-0

[Event "*** SCC Grand Prix: Titled Tuesday Blitz"]
[Site "Chess.com"]
[Date "2020.06.02"]
[Round "6"]
[White "Moon_stone123"]
[Black "ChronicUnhappiness"]
[Result "1-0"]
[WhiteElo "2470"]
[BlackElo "2306"]
[TimeControl "180+1"]
[EndTime "11:08:28 PDT"]
[Termination "Moon_stone123 won by resignation"]

1. Nf3 {[%clk 0:03:00.9]} 1... Nf6 {[%clk 0:02:59.4]} 2. g3 {[%clk 0:03:01]}
2... b5 {[%clk 0:02:59.2]} 3. Bg2 {[%clk 0:02:57.9]} 3... Bb7 {[%clk 0:02:59.3]}
4. O-O {[%clk 0:02:58.5]} 4... e6 {[%clk 0:02:59.4]} 5. d3 {[%clk 0:02:58.5]}
5... c5 {[%clk 0:02:59.3]} 6. Nbd2 {[%clk 0:02:58.8]} 6... Nc6 {[%clk
0:02:58.8]} 7. e4 {[%clk 0:02:59]} 7... d6 {[%clk 0:02:58.5]} 8. Re1 {[%clk
0:02:58.8]} 8... Be7 {[%clk 0:02:58.1]} 9. a4 {[%clk 0:02:58.1]} 9... b4 {[%clk
0:02:51.7]} 10. Nc4 {[%clk 0:02:57.6]} 10... e5 {[%clk 0:02:30.2]} 11. Bg5
{[%clk 0:02:54.1]} 11... O-O {[%clk 0:02:14.1]} 12. Ne3 {[%clk 0:02:43.8]} 12...
Re8 {[%clk 0:02:09.8]} 13. Nd2 {[%clk 0:02:28.7]} 13... Nd7 {[%clk 0:01:48.6]}
14. Bxe7 {[%clk 0:02:27.5]} 14... Nxe7 {[%clk 0:01:49.5]} 15. Ndc4 {[%clk
0:02:26.2]} 15... Nb6 {[%clk 0:01:49]} 16. a5 {[%clk 0:02:24.8]} 16... Nxc4
{[%clk 0:01:48.3]} 17. Nxc4 {[%clk 0:02:25.7]} 17... Ba6 {[%clk 0:01:38.2]} 18.
Ne3 {[%clk 0:02:21.8]} 18... Rc8 {[%clk 0:01:37.5]} 19. Qd2 {[%clk 0:02:20.8]}
19... Qd7 {[%clk 0:01:25.8]} 20. h3 {[%clk 0:02:11.3]} 20... Rb8 {[%clk
0:01:16.7]} 21. Rf1 {[%clk 0:02:05]} 21... Nc6 {[%clk 0:01:15.6]} 22. Nd5 {[%clk
0:01:53.8]} 22... Nd4 {[%clk 0:01:13.2]} 23. Rad1 {[%clk 0:01:44.1]} 23... Bb7
{[%clk 0:01:07.9]} 24. Ne3 {[%clk 0:01:39.3]} 24... f5 {[%clk 0:00:59.7]} 25. c3
{[%clk 0:01:35.3]} 25... bxc3 {[%clk 0:00:58.2]} 26. bxc3 {[%clk 0:01:36.2]}
26... Nb3 {[%clk 0:00:56.3]} 27. Qa2 {[%clk 0:01:35.7]} 27... Qf7 {[%clk
0:00:42.5]} 28. Nxf5 {[%clk 0:01:35.4]} 28... Red8 {[%clk 0:00:34.1]} 29. Rb1
{[%clk 0:01:28.9]} 29... Ba6 {[%clk 0:00:30.5]} 30. Rfd1 {[%clk 0:01:17.7]}
30... c4 {[%clk 0:00:16.4]} 31. dxc4 {[%clk 0:01:01]} 31... Qxc4 {[%clk
0:00:13.9]} 32. Nxd6 {[%clk 0:00:58.4]} 32... Qxc3 {[%clk 0:00:13.7]} 33. Nf5
{[%clk 0:00:51.6]} 33... Kf8 {[%clk 0:00:12.4]} 34. Qa3+ {[%clk 0:00:49.8]}
34... Qb4 {[%clk 0:00:11.1]} 35. Rxd8+ {[%clk 0:00:49]} 1-0

[Event "*** SCC Grand Prix: Titled Tuesday Blitz"]
[Site "Chess.com"]
[Date "2020.06.02"]
[Round "6"]
[White "Angel_Hranitel_37"]
[Black "Escanor89"]
[Result "1-0"]
[WhiteElo "2404"]
[BlackElo "2555"]
[TimeControl "180+1"]
[EndTime "11:08:30 PDT"]
[Termination "Angel_Hranitel_37 won by resignation"]

1. d4 {[%clk 0:03:00.9]} 1... Nf6 {[%clk 0:02:59.5]} 2. Nf3 {[%clk 0:03:00.9]}
2... g6 {[%clk 0:02:59.4]} 3. g3 {[%clk 0:03:01.3]} 3... Bg7 {[%clk 0:02:59.5]}
4. Bg2 {[%clk 0:03:02]} 4... O-O {[%clk 0:03:00]} 5. O-O {[%clk 0:03:02.7]} 5...
d6 {[%clk 0:03:00.3]} 6. Nc3 {[%clk 0:03:02.7]} 6... c5 {[%clk 0:02:59.4]} 7.
dxc5 {[%clk 0:03:00.5]} 7... dxc5 {[%clk 0:02:58.6]} 8. Qxd8 {[%clk 0:03:00.8]}
8... Rxd8 {[%clk 0:02:58.6]} 9. Be3 {[%clk 0:03:01.1]} 9... Na6 {[%clk
0:02:56.1]} 10. Rfd1 {[%clk 0:02:51.5]} 10... Bf5 {[%clk 0:02:53.7]} 11. Nh4
{[%clk 0:02:35.1]} 11... Rxd1+ {[%clk 0:02:29.5]} 12. Rxd1 {[%clk 0:02:36]}
12... Rb8 {[%clk 0:02:29.2]} 13. Nxf5 {[%clk 0:02:34.1]} 13... gxf5 {[%clk
0:02:28.5]} 14. Bf4 {[%clk 0:02:33.4]} 14... Rf8 {[%clk 0:02:20]} 15. Bxb7
{[%clk 0:02:25.7]} 15... Nb4 {[%clk 0:02:19.3]} 16. Rd2 {[%clk 0:02:20.6]} 16...
Nh5 {[%clk 0:02:04.8]} 17. Be3 {[%clk 0:02:20.9]} 17... Bxc3 {[%clk 0:01:42.7]}
18. bxc3 {[%clk 0:02:14.8]} 18... Nxa2 {[%clk 0:01:42.3]} 19. Bxc5 {[%clk
0:02:09.6]} 19... Nxc3 {[%clk 0:01:40.2]} 20. Rd3 {[%clk 0:01:07.8]} 20... Nxe2+
{[%clk 0:01:26.3]} 21. Kf1 {[%clk 0:01:08.3]} 21... Nc1 {[%clk 0:01:24.4]} 22.
Ra3 {[%clk 0:00:35.9]} 22... Rd8 {[%clk 0:01:05]} 23. Bf3 {[%clk 0:00:35.5]}
23... Nf6 {[%clk 0:00:50.7]} 24. Be3 {[%clk 0:00:35.3]} 24... Rb8 {[%clk
0:00:42]} 25. Ra1 {[%clk 0:00:27.5]} 25... Nb3 {[%clk 0:00:34]} 26. cxb3 {[%clk
0:00:27.5]} 26... Rxb3 {[%clk 0:00:34]} 27. Rxa7 {[%clk 0:00:27.3]} 27... e6
{[%clk 0:00:33.7]} 28. Bd4 {[%clk 0:00:21.7]} 28... Rxf3 {[%clk 0:00:31.5]} 29.
Bxf6 {[%clk 0:00:20.6]} 29... h6 {[%clk 0:00:31.4]} 30. h4 {[%clk 0:00:19.6]}
30... Rb3 {[%clk 0:00:31]} 31. Ra8+ {[%clk 0:00:18.2]} 31... Kh7 {[%clk
0:00:30.6]} 32. h5 {[%clk 0:00:18.8]} 1-0

[Event "*** SCC Grand Prix: Titled Tuesday Blitz"]
[Site "Chess.com"]
[Date "2020.06.02"]
[Round "6"]
[White "kingofthenil"]
[Black "doctorcristian"]
[Result "1-0"]
[WhiteElo "2456"]
[BlackElo "2294"]
[TimeControl "180+1"]
[EndTime "11:08:30 PDT"]
[Termination "kingofthenil won by resignation"]

1. e4 {[%clk 0:02:34.8]} 1... c6 {[%clk 0:02:57.9]} 2. c4 {[%clk 0:02:33.4]}
2... e6 {[%clk 0:02:57.6]} 3. d4 {[%clk 0:02:27.2]} 3... Bb4+ {[%clk 0:02:56.7]}
4. Bd2 {[%clk 0:02:26.1]} 4... Bxd2+ {[%clk 0:02:56.6]} 5. Qxd2 {[%clk 0:02:27]}
5... Nh6 {[%clk 0:02:56.7]} 6. Nc3 {[%clk 0:02:04.2]} 6... d6 {[%clk 0:02:55.2]}
7. f4 {[%clk 0:02:03.4]} 7... O-O {[%clk 0:02:51.3]} 8. Nf3 {[%clk 0:01:39]}
8... f5 {[%clk 0:02:45.6]} 9. Bd3 {[%clk 0:01:33.7]} 9... Na6 {[%clk 0:02:44]}
10. O-O {[%clk 0:01:33]} 10... Bd7 {[%clk 0:02:40.4]} 11. Rad1 {[%clk 0:01:29]}
11... Qa5 {[%clk 0:02:37]} 12. a3 {[%clk 0:01:15.3]} 12... c5 {[%clk 0:02:35.9]}
13. d5 {[%clk 0:01:11.7]} 13... exd5 {[%clk 0:02:31.2]} 14. exd5 {[%clk
0:01:07.9]} 14... Rae8 {[%clk 0:02:29.1]} 15. Rde1 {[%clk 0:01:00.9]} 15... Nc7
{[%clk 0:02:28.9]} 16. h3 {[%clk 0:00:57]} 16... a6 {[%clk 0:02:23.1]} 17. Ng5
{[%clk 0:00:55.5]} 17... b5 {[%clk 0:02:19.5]} 18. Rxe8 {[%clk 0:00:42.1]} 18...
Rxe8 {[%clk 0:02:18.2]} 19. Re1 {[%clk 0:00:43]} 19... bxc4 {[%clk 0:01:59.7]}
20. Bxc4 {[%clk 0:00:41.8]} 20... Qb6 {[%clk 0:01:58.4]} 21. Ne6 {[%clk
0:00:39.1]} 21... Nb5 {[%clk 0:01:47.4]} 22. Qe3 {[%clk 0:00:29.7]} 22... Nd4
{[%clk 0:01:45.2]} 23. Qg3 {[%clk 0:00:27.4]} 23... Bxe6 {[%clk 0:01:23.2]} 24.
dxe6 {[%clk 0:00:28.3]} 24... Qxb2 {[%clk 0:01:23.1]} 25. Nd5 {[%clk 0:00:22.6]}
25... Kh8 {[%clk 0:01:17.5]} 26. e7 {[%clk 0:00:06.8]} 26... Ng8 {[%clk
0:01:15.4]} 27. Qg5 {[%clk 0:00:04.7]} 27... Qd2 {[%clk 0:01:06.2]} 28. Rf1
{[%clk 0:00:02.8]} 28... Qe3+ {[%clk 0:01:04.7]} 29. Nxe3 {[%clk 0:00:02.4]}
29... Nf3+ {[%clk 0:01:04.6]} 30. Rxf3 {[%clk 0:00:01.6]} 30... Rxe7 {[%clk
0:01:05.5]} 31. Qh4 {[%clk 0:00:02.1]} 31... Nf6 {[%clk 0:01:05.6]} 32. Qf2
{[%clk 0:00:02.2]} 32... d5 {[%clk 0:01:05.7]} 33. Qe1 {[%clk 0:00:03.1]} 33...
Ne4 {[%clk 0:01:06]} 34. Bxd5 {[%clk 0:00:03.1]} 34... Rd7 {[%clk 0:01:06.2]}
35. Nxf5 {[%clk 0:00:03.2]} 35... Rxd5 {[%clk 0:01:06]} 36. Qxe4 {[%clk
0:00:03.8]} 36... Rd8 {[%clk 0:01:06.6]} 37. Qe7 {[%clk 0:00:03.9]} 37... Rg8
{[%clk 0:01:06.7]} 38. Rg3 {[%clk 0:00:04.4]} 38... h5 {[%clk 0:01:06.1]} 39.
Rxg7 {[%clk 0:00:04.6]} 1-0

[Event "*** SCC Grand Prix: Titled Tuesday Blitz"]
[Site "Chess.com"]
[Date "2020.06.02"]
[Round "6"]
[White "saraswathii"]
[Black "pedro_nascimento85"]
[Result "1-0"]
[WhiteElo "2364"]
[BlackElo "1944"]
[TimeControl "180+1"]
[EndTime "11:08:30 PDT"]
[Termination "saraswathii won on time"]

1. e4 {[%clk 0:03:00.9]} 1... e6 {[%clk 0:02:59.5]} 2. d3 {[%clk 0:03:01]} 2...
c5 {[%clk 0:02:58.9]} 3. Nf3 {[%clk 0:02:59.1]} 3... Nc6 {[%clk 0:02:59.1]} 4.
g3 {[%clk 0:02:58.8]} 4... g6 {[%clk 0:02:58.7]} 5. Bg2 {[%clk 0:02:58.8]} 5...
Bg7 {[%clk 0:02:58.7]} 6. O-O {[%clk 0:02:58.8]} 6... Nge7 {[%clk 0:02:58.6]} 7.
c3 {[%clk 0:02:58.8]} 7... e5 {[%clk 0:02:57.8]} 8. Be3 {[%clk 0:02:56.4]} 8...
d6 {[%clk 0:02:57.3]} 9. Na3 {[%clk 0:02:53.9]} 9... O-O {[%clk 0:02:52.9]} 10.
Nc2 {[%clk 0:02:53.5]} 10... Bg4 {[%clk 0:02:43.8]} 11. Qd2 {[%clk 0:02:51.6]}
11... Bxf3 {[%clk 0:02:36.3]} 12. Bxf3 {[%clk 0:02:50.6]} 12... b5 {[%clk
0:02:34.1]} 13. a4 {[%clk 0:02:48.9]} 13... a6 {[%clk 0:02:32.1]} 14. d4 {[%clk
0:02:48.1]} 14... exd4 {[%clk 0:02:22.3]} 15. cxd4 {[%clk 0:02:49]} 15... cxd4
{[%clk 0:01:52.9]} 16. Nxd4 {[%clk 0:02:46.4]} 16... Ne5 {[%clk 0:01:52.9]} 17.
Bg2 {[%clk 0:02:44]} 17... Nc4 {[%clk 0:01:41.9]} 18. Qe2 {[%clk 0:02:42.9]}
18... Nxe3 {[%clk 0:01:40.9]} 19. Qxe3 {[%clk 0:02:42.4]} 19... Qb6 {[%clk
0:01:37.5]} 20. Rfd1 {[%clk 0:02:37.9]} 20... bxa4 {[%clk 0:01:15.8]} 21. Rxa4
{[%clk 0:02:32.7]} 21... Qxb2 {[%clk 0:01:11.9]} 22. Ne2 {[%clk 0:02:18]} 22...
Qb5 {[%clk 0:00:25.9]} 23. Ra3 {[%clk 0:02:07]} 23... a5 {[%clk 0:00:22.7]} 24.
Rxd6 {[%clk 0:01:57.8]} 24... Rab8 {[%clk 0:00:20.3]} 25. Rd1 {[%clk 0:01:53.5]}
25... Rfe8 {[%clk 0:00:19.1]} 26. Nf4 {[%clk 0:01:52.9]} 26... Nf5 {[%clk
0:00:18.6]} 27. Qa7 {[%clk 0:01:51.7]} 27... Rb7 {[%clk 0:00:17.6]} 28. Qxa5
{[%clk 0:01:48.4]} 28... Qxa5 {[%clk 0:00:17.7]} 29. Rxa5 {[%clk 0:01:49.3]}
29... Ne7 {[%clk 0:00:16.6]} 30. e5 {[%clk 0:01:41.6]} 30... Rb2 {[%clk
0:00:16.1]} 31. e6 {[%clk 0:01:40.8]} 31... fxe6 {[%clk 0:00:14.8]} 32. Nxe6
{[%clk 0:01:41.7]} 32... Bf6 {[%clk 0:00:12.7]} 33. Ra7 {[%clk 0:01:38.2]} 33...
Nf5 {[%clk 0:00:12]} 34. Bd5 {[%clk 0:01:36.8]} 34... Kh8 {[%clk 0:00:10.9]} 35.
Rf7 {[%clk 0:01:29.5]} 35... Bg7 {[%clk 0:00:05.4]} 36. g4 {[%clk 0:01:28]}
36... Nd6 {[%clk 0:00:04.5]} 37. Rxg7 {[%clk 0:01:26.3]} 37... Rxe6 {[%clk
0:00:04.8]} 38. Bxe6 {[%clk 0:01:26.6]} 38... Kxg7 {[%clk 0:00:03.4]} 39. Rxd6
{[%clk 0:01:26.2]} 39... Rb1+ {[%clk 0:00:03.5]} 40. Kg2 {[%clk 0:01:25.8]}
40... Rb2 {[%clk 0:00:04.4]} 41. h4 {[%clk 0:01:24.2]} 41... h6 {[%clk
0:00:05.3]} 42. Bc4 {[%clk 0:01:23.1]} 42... h5 {[%clk 0:00:06.2]} 43. g5 {[%clk
0:01:22.6]} 43... Kh7 {[%clk 0:00:05.2]} 44. Bf7 {[%clk 0:01:21.2]} 1-0

[Event "*** SCC Grand Prix: Titled Tuesday Blitz"]
[Site "Chess.com"]
[Date "2020.06.02"]
[Round "6"]
[White "lelajavakhishvili"]
[Black "PowerThinking2650"]
[Result "1/2-1/2"]
[WhiteElo "2491"]
[BlackElo "2274"]
[TimeControl "180+1"]
[EndTime "11:08:33 PDT"]
[Termination "Game drawn by agreement"]

1. d4 {[%clk 0:03:00.9]} 1... Nf6 {[%clk 0:02:59.3]} 2. c4 {[%clk 0:03:00.3]}
2... g6 {[%clk 0:02:59.5]} 3. Nf3 {[%clk 0:02:59.6]} 3... Bg7 {[%clk 0:02:59.5]}
4. g3 {[%clk 0:02:59.7]} 4... O-O {[%clk 0:02:58.9]} 5. Bg2 {[%clk 0:02:59.9]}
5... d6 {[%clk 0:02:59.1]} 6. O-O {[%clk 0:02:59.4]} 6... Nbd7 {[%clk 0:02:59]}
7. b3 {[%clk 0:02:57.6]} 7... e5 {[%clk 0:02:58.4]} 8. dxe5 {[%clk 0:02:57.5]}
8... dxe5 {[%clk 0:02:53.2]} 9. Ba3 {[%clk 0:02:57.3]} 9... Re8 {[%clk
0:02:46.3]} 10. Nc3 {[%clk 0:02:57.3]} 10... e4 {[%clk 0:02:41.1]} 11. Nd4
{[%clk 0:02:40.8]} 11... e3 {[%clk 0:02:33.8]} 12. f4 {[%clk 0:02:31.8]} 12...
Ng4 {[%clk 0:02:20.2]} 13. Ne4 {[%clk 0:01:45.9]} 13... a6 {[%clk 0:01:04.4]}
14. Qd3 {[%clk 0:01:15.6]} 14... c5 {[%clk 0:00:36.4]} 15. Nc2 {[%clk
0:01:11.3]} 15... Bxa1 {[%clk 0:00:33.1]} 16. Rxa1 {[%clk 0:01:07.6]} 16... Qe7
{[%clk 0:00:24.1]} 17. Bb2 {[%clk 0:00:24.8]} 17... Nf2 {[%clk 0:00:17.7]} 18.
Qc3 {[%clk 0:00:19.4]} 18... f6 {[%clk 0:00:17.8]} 19. Nxf6+ {[%clk 0:00:12.2]}
19... Nxf6 {[%clk 0:00:17.4]} 20. Qxf6 {[%clk 0:00:09.1]} 20... Qxf6 {[%clk
0:00:17.6]} 21. Bxf6 {[%clk 0:00:09.4]} 21... Bf5 {[%clk 0:00:15.4]} 22. Rc1
{[%clk 0:00:07.3]} 1/2-1/2

[Event "*** SCC Grand Prix: Titled Tuesday Blitz"]
[Site "Chess.com"]
[Date "2020.06.02"]
[Round "6"]
[White "mirochka"]
[Black "Bubachess1608"]
[Result "0-1"]
[WhiteElo "2173"]
[BlackElo "2321"]
[TimeControl "180+1"]
[EndTime "11:08:37 PDT"]
[Termination "Bubachess1608 won on time"]

1. e4 {[%clk 0:03:00.9]} 1... c5 {[%clk 0:02:58.7]} 2. b4 {[%clk 0:03:00]} 2...
cxb4 {[%clk 0:02:57.8]} 3. a3 {[%clk 0:02:59.3]} 3... b3 {[%clk 0:02:57.5]} 4.
cxb3 {[%clk 0:02:58.8]} 4... d5 {[%clk 0:02:56.4]} 5. e5 {[%clk 0:02:48.4]} 5...
Nc6 {[%clk 0:02:55.3]} 6. Nf3 {[%clk 0:02:45.4]} 6... Bg4 {[%clk 0:02:54.1]} 7.
Bb2 {[%clk 0:02:43]} 7... e6 {[%clk 0:02:53.4]} 8. Be2 {[%clk 0:02:42.5]} 8...
Rc8 {[%clk 0:02:48.8]} 9. O-O {[%clk 0:02:39]} 9... Qb6 {[%clk 0:02:47.6]} 10.
b4 {[%clk 0:02:13.5]} 10... Nh6 {[%clk 0:02:46.4]} 11. h3 {[%clk 0:01:54.8]}
11... Bxf3 {[%clk 0:02:44.1]} 12. Bxf3 {[%clk 0:01:53]} 12... Nf5 {[%clk
0:02:41.8]} 13. Bg4 {[%clk 0:01:45.1]} 13... Nfd4 {[%clk 0:02:33.6]} 14. Re1
{[%clk 0:01:26.4]} 14... g6 {[%clk 0:02:32.4]} 15. Kh2 {[%clk 0:01:20.7]} 15...
h5 {[%clk 0:02:31.4]} 16. Be2 {[%clk 0:00:54.1]} 16... Nxe5 {[%clk 0:02:24.8]}
17. Nc3 {[%clk 0:00:50.8]} 17... Bd6 {[%clk 0:02:19.8]} 18. Kh1 {[%clk
0:00:39.7]} 18... O-O {[%clk 0:02:11.8]} 19. Bxh5 {[%clk 0:00:32.8]} 19... Nd3
{[%clk 0:01:54.6]} 20. Qb1 {[%clk 0:00:17.5]} 20... Nxf2+ {[%clk 0:01:39.5]} 21.
Kg1 {[%clk 0:00:13.8]} 21... gxh5 {[%clk 0:01:32.4]} 22. Re3 {[%clk 0:00:12]}
22... Nf5 {[%clk 0:01:26.3]} 23. Nxd5 {[%clk 0:00:07.7]} 23... Qd8 {[%clk
0:00:34.9]} 24. Nf6+ {[%clk 0:00:06.7]} 24... Kh8 {[%clk 0:00:33.9]} 25. Nxh5+
{[%clk 0:00:05.5]} 25... Kh7 {[%clk 0:00:32.2]} 26. Nf6+ {[%clk 0:00:05.8]}
26... Kg6 {[%clk 0:00:31.7]} 27. Rg3+ {[%clk 0:00:05.9]} 27... Bxg3 {[%clk
0:00:30.6]} 0-1

[Event "*** SCC Grand Prix: Titled Tuesday Blitz"]
[Site "Chess.com"]
[Date "2020.06.02"]
[Round "6"]
[White "diablanni"]
[Black "harperchesstt"]
[Result "1-0"]
[WhiteElo "2336"]
[BlackElo "2180"]
[TimeControl "180+1"]
[EndTime "11:08:40 PDT"]
[Termination "diablanni won on time"]

1. e4 {[%clk 0:02:59.6]} 1... c5 {[%clk 0:02:59.7]} 2. Nf3 {[%clk 0:02:59]} 2...
d6 {[%clk 0:02:40.4]} 3. Bb5+ {[%clk 0:02:58.9]} 3... Bd7 {[%clk 0:02:37.8]} 4.
Bxd7+ {[%clk 0:02:58.1]} 4... Qxd7 {[%clk 0:02:22.2]} 5. c4 {[%clk 0:02:57.1]}
5... Nf6 {[%clk 0:02:21.6]} 6. Nc3 {[%clk 0:02:55.5]} 6... g6 {[%clk 0:02:21]}
7. d4 {[%clk 0:02:47.5]} 7... cxd4 {[%clk 0:02:21.9]} 8. Nxd4 {[%clk 0:02:47.3]}
8... Bg7 {[%clk 0:02:22.1]} 9. b3 {[%clk 0:02:46.3]} 9... O-O {[%clk 0:02:22.3]}
10. Bb2 {[%clk 0:02:46.4]} 10... Rc8 {[%clk 0:01:31.7]} 11. O-O {[%clk
0:02:43.9]} 11... a6 {[%clk 0:01:30.9]} 12. Re1 {[%clk 0:02:36.4]} 12... Nc6
{[%clk 0:01:22.6]} 13. Nxc6 {[%clk 0:02:34]} 13... bxc6 {[%clk 0:01:14.5]} 14.
Na4 {[%clk 0:02:33.6]} 14... Rab8 {[%clk 0:01:10.2]} 15. e5 {[%clk 0:02:32.8]}
15... Ne8 {[%clk 0:00:53.7]} 16. exd6 {[%clk 0:02:31]} 16... Bxb2 {[%clk
0:00:48.3]} 17. Nxb2 {[%clk 0:02:20.8]} 17... exd6 {[%clk 0:00:47]} 18. Qd4
{[%clk 0:02:14.2]} 18... Ng7 {[%clk 0:00:42.9]} 19. Rad1 {[%clk 0:02:12]} 19...
Nf5 {[%clk 0:00:41.5]} 20. Qf4 {[%clk 0:01:44.4]} 20... h5 {[%clk 0:00:27.8]}
21. Na4 {[%clk 0:01:42.2]} 21... Re8 {[%clk 0:00:26.1]} 22. Nc5 {[%clk 0:01:32]}
22... Rxe1+ {[%clk 0:00:24.3]} 23. Rxe1 {[%clk 0:01:32.2]} 23... Qa7 {[%clk
0:00:17]} 24. Ne4 {[%clk 0:01:30]} 24... Qe7 {[%clk 0:00:14.9]} 25. Rd1 {[%clk
0:01:23.5]} 25... Re8 {[%clk 0:00:11.8]} 26. Ng3 {[%clk 0:01:23.8]} 26... Nxg3
{[%clk 0:00:07.3]} 27. hxg3 {[%clk 0:01:21.4]} 27... Rd8 {[%clk 0:00:07.1]} 28.
Kf1 {[%clk 0:01:12.9]} 28... d5 {[%clk 0:00:07.3]} 29. cxd5 {[%clk 0:01:10.5]}
29... cxd5 {[%clk 0:00:08.2]} 30. Qd4 {[%clk 0:01:09.9]} 30... Qe6 {[%clk
0:00:08.3]} 31. Rc1 {[%clk 0:00:56.6]} 31... a5 {[%clk 0:00:05.9]} 32. Kg1
{[%clk 0:00:49.5]} 32... Rb8 {[%clk 0:00:01.9]} 33. Rc5 {[%clk 0:00:43.1]} 1-0

[Event "*** SCC Grand Prix: Titled Tuesday Blitz"]
[Site "Chess.com"]
[Date "2020.06.02"]
[Round "6"]
[White "Abund"]
[Black "Savva09022009"]
[Result "1-0"]
[WhiteElo "2603"]
[BlackElo "2389"]
[TimeControl "180+1"]
[EndTime "11:08:42 PDT"]
[Termination "Abund won by checkmate"]

1. d4 {[%clk 0:03:00.9]} 1... Nf6 {[%clk 0:02:59.9]} 2. c4 {[%clk 0:03:00.8]}
2... e6 {[%clk 0:03:00.8]} 3. Nc3 {[%clk 0:03:00.5]} 3... Bb4 {[%clk 0:02:58.6]}
4. f3 {[%clk 0:03:00.7]} 4... c5 {[%clk 0:02:56.1]} 5. d5 {[%clk 0:03:00.8]}
5... b5 {[%clk 0:02:55.6]} 6. e4 {[%clk 0:03:00.3]} 6... bxc4 {[%clk 0:02:54.5]}
7. Bxc4 {[%clk 0:03:00.3]} 7... O-O {[%clk 0:02:53.5]} 8. Ne2 {[%clk 0:02:56.1]}
8... exd5 {[%clk 0:02:50.7]} 9. Bxd5 {[%clk 0:02:55.7]} 9... Nxd5 {[%clk
0:02:47.4]} 10. Qxd5 {[%clk 0:02:56.3]} 10... Nc6 {[%clk 0:02:47.5]} 11. O-O
{[%clk 0:02:54.2]} 11... Ba6 {[%clk 0:02:42.7]} 12. Rd1 {[%clk 0:02:50.7]} 12...
Qb6 {[%clk 0:02:33.6]} 13. Be3 {[%clk 0:02:22.9]} 13... Rac8 {[%clk 0:02:19.9]}
14. Rab1 {[%clk 0:02:16.3]} 14... Rfd8 {[%clk 0:02:16]} 15. a3 {[%clk 0:02:10]}
15... Bxc3 {[%clk 0:02:11.8]} 16. bxc3 {[%clk 0:01:53.1]} 16... Qa5 {[%clk
0:02:05.1]} 17. Ng3 {[%clk 0:01:53]} 17... Qxc3 {[%clk 0:01:57.4]} 18. Bg5
{[%clk 0:01:29.1]} 18... Re8 {[%clk 0:01:44]} 19. Nf5 {[%clk 0:01:22.6]} 19...
g6 {[%clk 0:01:28.2]} 20. Nd6 {[%clk 0:01:06.4]} 20... Ne5 {[%clk 0:01:15.4]}
21. Bf6 {[%clk 0:00:50.3]} 21... Nxf3+ {[%clk 0:01:12.1]} 22. gxf3 {[%clk
0:00:49]} 22... Qxf6 {[%clk 0:01:13]} 23. Nxc8 {[%clk 0:00:34.4]} 23... Bxc8
{[%clk 0:01:09.6]} 24. Rb3 {[%clk 0:00:25.1]} 24... Kg7 {[%clk 0:00:48.2]} 25.
Qxc5 {[%clk 0:00:22.1]} 25... Re5 {[%clk 0:00:42.5]} 26. Qxc8 {[%clk 0:00:18.2]}
26... Rg5+ {[%clk 0:00:34.4]} 27. Kh1 {[%clk 0:00:18.3]} 27... Qe6 {[%clk
0:00:25.8]} 28. Qc3+ {[%clk 0:00:17.6]} 28... f6 {[%clk 0:00:22.1]} 29. Rb7
{[%clk 0:00:17]} 29... Qh3 {[%clk 0:00:19.1]} 30. Rdxd7+ {[%clk 0:00:16.8]}
30... Kh6 {[%clk 0:00:18.7]} 31. Rxh7# {[%clk 0:00:16.8]} 1-0